bitfinex/quotes_BTCUSD_20240901
["timestamp","ask_amount","ask_price","bid_price","bid_amount"]
[1725192480185,0.000817,58436.0,58435.0,1.22291]
[1725192480643,0.000817,58436.0,58435.0,1.29893721]
[1725192480869,0.000817,58436.0,58435.0,1.29693361]
[1725192482258,0.000817,58436.0,58435.0,1.27158898]
[1725192482738,0.000817,58436.0,58435.0,1.22091]
[1725192482971,0.000817,58436.0,58435.0,1.2218087]
[1725192484292,0.000817,58436.0,58435.0,1.29783231]
[1725192484502,0.000817,58436.0,58435.0,1.2218087]
[1725192484936,0.000817,58436.0,58435.0,0.8795487]
[1725192485589,0.000817,58436.0,58435.0,0.8565487]
[1725192486661,0.000817,58436.0,58435.0,0.90722971]
[1725192488471,0.000817,58436.0,58435.0,1.24948971]
[1725192488685,0.000817,58436.0,58435.0,1.2238087]
[1725192489113,0.000817,58436.0,58435.0,1.2218087]
[1725192490826,0.000817,58436.0,58435.0,1.29784508]
[1725192491722,0.000817,58436.0,58435.0,1.2218087]
[1725192492702,0.000817,58436.0,58435.0,0.8565487]
[1725192495800,0.000817,58436.0,58435.0,0.5142887]
[1725192498185,0.342135,58457.0,58435.0,0.5142887]
[1725192498186,0.171113,58441.0,58436.0,0.171126]
[1725192498410,0.455738,58440.0,58436.0,0.171126]
[1725192498820,0.48259329,58440.0,58436.0,0.171126]
[1725192499066,0.02685529,58440.0,58437.0,0.171124]
[1725192499290,0.02685529,58440.0,58437.0,0.238324]
[1725192500456,0.02685529,58440.0,58437.0,0.171124]
[1725192501122,0.02685529,58440.0,58439.0,0.171118]
[1725192501336,0.1711,58446.0,58439.0,0.171118]
[1725192501337,0.1711,58446.0,58441.0,0.171111]
[1725192502755,0.1711,58446.0,58442.0,0.171109]
[1725192504623,0.02685468,58446.0,58443.0,0.171106]
[1725192506594,0.02685468,58446.0,58444.0,0.171101]
[1725192507246,0.02685468,58446.0,58443.0,0.171106]
[1725192509006,0.02767168,58446.0,58443.0,0.171106]
[1725192510285,0.149732,58445.0,58441.0,0.171109]
[1725192510509,0.320834,58445.0,58441.0,0.171109]
[1725192510739,0.331716,58444.0,58441.0,0.171109]
[1725192510979,0.331716,58444.0,58442.0,0.171109]
[1725192511410,0.161884,58443.0,58442.0,0.171109]
[1725192511658,0.171106,58444.0,58440.0,0.05079871]
[1725192511896,0.587425,58443.0,58440.0,0.05079871]
[1725192512104,0.416318,58442.0,58440.0,0.05079871]
[1725192512322,0.39942,58442.0,58440.0,0.05079871]
[1725192512534,0.000817,58446.0,58441.0,0.05079871]
[1725192512535,0.171105,58444.0,58441.0,0.05079871]
[1725192512748,0.171105,58444.0,58442.0,0.05079871]
[1725192513239,0.171105,58444.0,58441.0,0.05079871]
[1725192513449,0.171105,58444.0,58442.0,0.05079871]
[1725192514068,0.000817,58446.0,58440.0,0.24731207]
[1725192514069,0.171916,58446.0,58443.0,0.12029871]
[1725192514285,0.000817,58446.0,58443.0,0.29140471]
[1725192514729,0.000817,58446.0,58444.0,0.05083794]
[1725192514937,0.000817,58446.0,58443.0,0.29144394]
[1725192515152,0.000817,58446.0,58443.0,0.05083794]
[1725192515361,0.0705,58445.0,58442.0,0.05083794]
[1725192515579,0.513319,58443.0,58442.0,0.05083794]
[1725192515798,0.0705,58439.0,58435.0,0.05173664]
[1725192516015,0.513381,58436.0,58435.0,0.0008987]
[1725192516221,2.643594,58436.0,58435.0,0.0008987]
[1725192516432,2.387484,58436.0,58435.0,0.0008987]
[1725192516645,1.283913,58436.0,58435.0,0.0008987]
[1725192516857,1.193505,58436.0,58435.0,0.0008987]
[1725192517116,0.851251,58436.0,58435.0,0.0008987]
[1725192518010,1.193505,58436.0,58435.0,0.0008987]
[1725192518665,1.6331182,58436.0,58435.0,0.0008987]
[1725192519301,1.2908642,58436.0,58435.0,0.0008987]
[1725192519735,0.0268592,58436.0,58435.0,0.0008987]
[1725192520411,0.0268592,58436.0,58435.0,0.1720287]
[1725192520628,0.171115,58440.0,58436.0,0.171127]
[1725192520833,0.171115,58440.0,58435.0,0.1720277]
[1725192522159,0.1,58442.0,58436.0,0.34567533]
[1725192522374,0.243057,58441.0,58437.0,0.171123]
[1725192522605,0.240657,58440.0,58437.0,0.171123]
[1725192522823,0.1,58445.0,58435.0,0.0008987]
[1725192522824,0.855635,58436.0,58435.0,0.0008987]
[1725192523046,1.197889,58436.0,58435.0,0.0008987]
[1725192523516,2.864394,58436.0,58435.0,0.0008987]
[1725192523727,1.782444,58436.0,58435.0,0.0008987]
[1725192523958,1.596776,58436.0,58435.0,0.0008987]
[1725192527735,1.62363575,58436.0,58435.0,0.0008987]
[1725192527961,1.04913675,58436.0,58435.0,0.0008987]
[1725192528203,0.70688275,58436.0,58435.0,0.0008987]
[1725192531358,0.680023,58436.0,58435.0,0.0008987]
[1725192533529,1.022277,58436.0,58435.0,0.0008987]
[1725192534213,1.364531,58436.0,58435.0,0.0008987]
[1725192534433,1.022277,58436.0,58435.0,0.0008987]
[1725192535602,1.087577,58436.0,58435.0,0.0008987]
[1725192536047,1.429831,58436.0,58435.0,0.0008987]
[1725192536523,0.920935,58436.0,58435.0,0.0008987]
[1725192536779,2.322261,58436.0,58435.0,0.0008987]
[1725192536976,2.745811,58436.0,58435.0,0.0008987]
[1725192537212,2.845811,58436.0,58435.0,0.0008987]
[1725192538885,2.87267219,58436.0,58435.0,0.0008987]
[1725192543421,1.41552119,58436.0,58435.0,0.0008987]
[1725192546495,1.82307519,58436.0,58435.0,0.0008987]
[1725192546741,1.796214,58436.0,58435.0,0.0008987]
[1725192546998,0.386975,58436.0,58435.0,0.0008987]
[1725192547222,0.49476142,58436.0,58435.0,0.0008987]
[1725192547436,0.31660742,58436.0,58435.0,0.0008987]
[1725192547677,0.171127,58436.0,58435.0,0.0008987]
[1725192548175,0.388327,58436.0,58435.0,0.0008987]
[1725192548415,0.271127,58436.0,58435.0,0.0008987]
[1725192548637,0.171127,58436.0,58435.0,0.0008987]
[1725192549319,0.364399,58436.0,58435.0,0.0008987]
[1725192549546,0.35186,58436.0,58435.0,0.0008987]
[1725192549749,0.342233,58440.0,58435.0,0.0008987]
[1725192549965,0.171121,58438.0,58435.0,0.0008987]
[1725192550185,0.597968,58439.0,58435.0,0.0008987]
[1725192550412,0.171121,58438.0,58435.0,0.0008987]
[1725192550636,0.687649,58438.0,58435.0,0.0008987]
[1725192550868,0.119568,58437.0,58435.0,0.0008987]
[1725192551089,0.22851,58438.0,58435.0,0.0008987]
[1725192553356,0.171118,58439.0,58435.0,0.1720287]
[1725192553357,0.15300993,58439.0,58435.0,0.1720287]
[1725192553572,0.495182,58438.0,58435.0,0.1720287]
[1725192553782,0.431485,58438.0,58435.0,0.1720287]
[1725192553993,0.72350191,58438.0,58435.0,0.1720287]
[1725192554206,0.429175,58437.0,58436.0,0.171127]
[1725192554425,0.118015,58437.0,58436.0,0.171127]
[1725192554881,0.118015,58437.0,58435.0,0.1720277]
[1725192555821,0.118015,58437.0,58435.0,0.0008987]
[1725192556274,0.118015,58437.0,58435.0,0.1720277]
[1725192557397,0.118015,58437.0,58435.0,0.0008987]
[1725192558922,0.118015,58437.0,58435.0,0.1720277]
[1725192561204,0.118015,58437.0,58436.0,0.171127]
[1725192561424,0.342213,58443.0,58435.0,0.3431587]
[1725192561665,3.021885,58442.0,58437.0,0.171123]
[1725192561911,2.433048,58441.0,58437.0,0.171123]
[1725192562140,0.000818,58444.0,58439.0,0.171117]
[1725192562363,0.819605,58443.0,58439.0,0.171117]
[1725192563050,0.819605,58443.0,58440.0,0.171113]
[1725192564429,0.819605,58443.0,58438.0,0.49294]
[1725192564643,0.819605,58443.0,58439.0,0.171117]
[1725192565116,0.171118,58439.0,58435.0,0.0008987]
[1725192565332,0.819605,58443.0,58435.0,0.0008987]
[1725192565333,0.171127,58436.0,58435.0,0.0008987]
[1725192565768,1.07794,58436.0,58435.0,0.0008987]
[1725192567324,0.912534,58436.0,58435.0,0.0008987]
[1725192567540,0.756577,58436.0,58435.0,0.0008987]
[1725192567783,0.480552,58436.0,58435.0,0.0008987]
[1725192568644,0.50741012,58436.0,58435.0,0.0008987]
[1725192571818,0.309425,58436.0,58435.0,0.0008987]
[1725192572039,0.342242,58439.0,58435.0,0.0008987]
[1725192572040,0.762298,58437.0,58435.0,0.0008987]
[1725192572266,0.472705,58436.0,58435.0,0.0008987]
[1725192573956,0.502539,58437.0,58435.0,0.0008987]
[1725192574179,0.358097,58436.0,58435.0,0.0008987]
[1725192574390,0.385171,58437.0,58435.0,0.0008987]
[1725192574611,0.855635,58436.0,58435.0,0.0008987]
[1725192574826,0.959718,58436.0,58435.0,0.0008987]
[1725192575073,0.949575,58436.0,58435.0,0.0008987]
[1725192576625,0.151874,58436.0,58435.0,0.1522987]
[1725192576855,0.171119,58439.0,58435.0,0.1522987]
[1725192577073,0.573155,58438.0,58435.0,0.1522987]
[1725192577293,0.673155,58438.0,58435.0,0.1522987]
[1725192577522,0.428186,58437.0,58435.0,0.1522987]
[1725192577987,0.411586,58437.0,58435.0,0.1522987]
[1725192578407,0.43844367,58437.0,58435.0,0.1522987]
[1725192578620,0.411571,58436.0,58435.0,0.1522987]
[1725192579011,0.411571,58436.0,58435.0,0.17111948]
[1725192580333,0.582698,58436.0,58435.0,0.0874987]
[1725192580562,0.411571,58436.0,58435.0,0.0874987]
[1725192581460,1.536891,58436.0,58435.0,0.0008987]
[1725192581679,1.979145,58436.0,58435.0,0.0008987]
[1725192581873,2.321399,58436.0,58435.0,0.0008987]
[1725192582985,2.391599,58436.0,58435.0,0.0008987]
[1725192585590,2.321399,58436.0,58435.0,0.0008987]
[1725192585831,1.826892,58436.0,58435.0,0.0008987]
[1725192586791,1.484638,58436.0,58435.0,0.0008987]
[1725192587003,1.51149847,58436.0,58435.0,0.0008987]
[1725192589904,1.85375247,58436.0,58435.0,0.0008987]
[1725192592805,1.826892,58436.0,58435.0,0.0008987]
[1725192596193,1.8537521,58436.0,58435.0,0.0008987]
[1725192596912,1.5114981,58436.0,58435.0,0.0008987]
[1725192600687,1.484638,58436.0,58435.0,0.0008987]
[1725192601787,1.873615,58436.0,58435.0,0.0008987]
[1725192610855,2.282969,58436.0,58435.0,0.0008987]
[1725192611577,1.85630262,58436.0,58435.0,0.0008987]
[1725192611785,0.39585462,58436.0,58435.0,0.1497987]
[1725192611994,0.324086,58436.0,58435.0,0.1497987]
[1725192612480,0.1,58436.0,58435.0,0.3209287]
[1725192612906,0.000818,58439.0,58436.0,0.1489]
[1725192613134,0.147989,58438.0,58436.0,0.1489]
[1725192613350,0.147989,58438.0,58437.0,0.1489]
[1725192613583,0.247989,58438.0,58437.0,0.1489]
[1725192614269,0.147989,58438.0,58437.0,0.662272]
[1725192614484,0.000818,58439.0,58438.0,0.662264]
[1725192614694,0.000818,58439.0,58438.0,0.71330828]
[1725192614907,0.000818,58439.0,58438.0,0.662264]
[1725192615332,0.3629,58439.0,58438.0,0.662264]
[1725192616881,0.38975593,58439.0,58438.0,0.662264]
[1725192618852,0.02767393,58439.0,58438.0,0.662264]
[1725192619734,0.02767393,58439.0,58438.0,0.320021]
[1725192619970,0.28132693,58439.0,58438.0,0.320021]
[1725192620189,0.25476793,58439.0,58438.0,0.320021]
[1725192622474,0.02767393,58439.0,58438.0,0.662264]
[1725192623479,0.16386293,58439.0,58438.0,0.662264]
[1725192623697,0.29198093,58439.0,58438.0,0.662264]
[1725192623914,0.26542293,58439.0,58438.0,0.662264]
[1725192624148,0.000818,58439.0,58438.0,0.662264]
[1725192626647,0.459365,58439.0,58438.0,0.320021]
[1725192626891,0.000818,58439.0,58438.0,0.320021]
[1725192627332,0.48540285,58439.0,58438.0,0.320021]
[1725192627555,0.67453085,58439.0,58438.0,0.320021]
[1725192627779,0.41455785,58439.0,58438.0,0.320021]
[1725192628879,0.41455785,58439.0,58438.0,0.3209208]
[1725192629784,0.41455785,58439.0,58438.0,0.1497998]
[1725192630012,0.41455785,58439.0,58438.0,0.0008998]
[1725192630013,1.27014985,58439.0,58438.0,0.0008998]
[1725192631630,0.88244785,58439.0,58438.0,0.0008998]
[1725192632064,1.54120485,58439.0,58438.0,0.0008998]
[1725192632287,1.37731485,58439.0,58438.0,0.0008998]
[1725192632711,1.350459,58439.0,58438.0,0.0008998]
[1725192634505,1.324799,58439.0,58438.0,0.0008998]
[1725192634731,1.207915,58439.0,58438.0,0.0008998]
[1725192634948,1.121315,58439.0,58438.0,0.0664998]
[1725192635438,1.121315,58439.0,58438.0,0.1456998]
[1725192637081,1.14817273,58439.0,58438.0,0.1456998]
[1725192637999,1.14817273,58439.0,58438.0,0.0008998]
[1725192638222,1.49040973,58439.0,58438.0,0.0008998]
[1725192638442,1.59040973,58439.0,58438.0,0.0008998]
[1725192642974,1.563552,58439.0,58438.0,0.0008998]
[1725192646326,1.59041157,58439.0,58438.0,0.0008998]
[1725192648148,1.99714857,58439.0,58438.0,0.0008998]
[1725192649015,1.970289,58439.0,58438.0,0.0008998]
[1725192651774,5.340678,58439.0,58438.0,0.0008998]
[1725192651986,5.158505,58439.0,58438.0,0.0008998]
[1725192652243,5.018935,58439.0,58438.0,0.0008998]
[1725192653727,4.676698,58439.0,58438.0,0.0008998]
[1725192653953,3.180558,58439.0,58438.0,0.0008998]
[1725192654665,2.910151,58439.0,58438.0,0.0008998]
[1725192654879,2.567914,58439.0,58438.0,0.0008998]
[1725192655108,2.063903,58439.0,58438.0,0.0008998]
[1725192657282,1.721666,58439.0,58438.0,0.0008998]
[1725192657467,1.721666,58439.0,58438.0,0.0689998]
[1725192657881,2.063903,58439.0,58438.0,0.0689998]
[1725192658117,1.721666,58439.0,58438.0,0.0689998]
[1725192658344,1.74852489,58439.0,58438.0,0.0689998]
[1725192659838,2.09076189,58439.0,58438.0,0.0689998]
[1725192660359,1.74852489,58439.0,58438.0,0.0689998]
[1725192661236,1.721666,58439.0,58438.0,0.0689998]
[1725192663918,1.721666,58439.0,58438.0,0.1477998]
[1725192664160,1.379429,58439.0,58438.0,0.1477998]
[1725192664381,1.208311,58439.0,58438.0,0.15307219]
[1725192664600,0.302,58439.0,58438.0,0.15307219]
[1725192666552,0.3003,58439.0,58438.0,0.15307219]
[1725192668163,0.471418,58439.0,58438.0,0.15307219]
[1725192669353,0.3003,58439.0,58438.0,0.15307219]
[1725192670415,0.3271573,58439.0,58438.0,0.15307219]
[1725192670648,0.31400832,58441.0,58438.0,0.15307219]
[1725192670837,0.645941,58440.0,58438.0,0.15307219]
[1725192671179,0.383497,58439.0,58438.0,0.15307219]
[1725192672613,0.483497,58439.0,58438.0,0.15307219]
[1725192675353,0.1,58439.0,58438.0,0.15307219]
[1725192675562,0.562491,58439.0,58438.0,0.15307219]
[1725192675772,0.1,58439.0,58438.0,0.15307219]
[1725192675988,0.678967,58439.0,58438.0,0.15307219]
[1725192676209,0.850085,58439.0,58438.0,0.15307219]
[1725192677925,0.850085,58439.0,58438.0,0.1477998]
[1725192678171,1.534559,58439.0,58438.0,0.0008998]
[1725192678624,1.56141663,58439.0,58438.0,0.0008998]
[1725192683454,0.49270763,58439.0,58438.0,0.1503998]
[1725192684353,0.49270763,58439.0,58438.0,0.15566967]
[1725192685289,1.34829963,58439.0,58438.0,0.00616967]
[1725192685507,1.34829963,58439.0,58438.0,0.0008998]
[1725192685724,1.69053663,58439.0,58438.0,0.0008998]
[1725192687271,1.663679,58439.0,58438.0,0.0008998]
[1725192690576,1.69053909,58439.0,58438.0,0.0008998]
[1725192691272,1.663679,58439.0,58438.0,0.0008998]
[1725192693789,1.732079,58439.0,58438.0,0.0008998]
[1725192699399,1.663679,58439.0,58438.0,0.0008998]
[1725192700738,1.69053981,58439.0,58438.0,0.0008998]
[1725192700957,1.42693376,58439.0,58438.0,0.0008998]
[1725192703169,1.52693376,58439.0,58438.0,0.0008998]
[1725192704341,1.50007295,58439.0,58438.0,0.0008998]
[1725192706894,3.648579,58439.0,58438.0,0.0008998]
[1725192707105,3.162404,58439.0,58438.0,0.0690998]
[1725192707319,3.162404,58439.0,58438.0,0.1550998]
[1725192707320,2.246193,58439.0,58438.0,0.1550998]
[1725192707523,2.2730531,58439.0,58438.0,0.1550998]
[1725192707930,2.246193,58439.0,58438.0,0.1550998]
[1725192710627,2.27305243,58439.0,58438.0,0.1550998]
[1725192711225,2.246193,58439.0,58438.0,0.1550998]
[1725192712008,2.246193,58439.0,58438.0,0.1410998]
[1725192712232,2.246193,58439.0,58438.0,0.1270998]
[1725192712683,2.254193,58439.0,58438.0,0.1280998]
[1725192712885,2.254193,58439.0,58438.0,0.001]
[1725192713074,2.260193,58439.0,58438.0,0.002]
[1725192717637,2.28705395,58439.0,58438.0,0.002]
[1725192720551,2.03813913,58439.0,58438.0,0.002]
[1725192720984,2.20925713,58439.0,58438.0,0.002]
[1725192721222,2.12326813,58439.0,58438.0,0.002]
[1725192721462,2.09640718,58439.0,58438.0,0.002]
[1725192722829,3.47054118,58439.0,58438.0,0.002]
[1725192723522,3.47054118,58439.0,58438.0,0.0028998]
[1725192723724,3.47135918,58439.0,58438.0,0.0028998]
[1725192724614,3.49821884,58439.0,58438.0,0.0028998]
[1725192728506,2.23467784,58439.0,58438.0,0.0028998]
[1725192735832,2.30407784,58439.0,58438.0,0.0028998]
[1725192737630,2.64631484,58439.0,58438.0,0.0028998]
[1725192738735,4.94385284,58439.0,58438.0,0.0028998]
[1725192739384,4.91699318,58439.0,58438.0,0.0028998]
[1725192744992,5.29499318,58439.0,58438.0,0.0028998]
[1725192745826,5.47569318,58439.0,58438.0,0.0028998]
[1725192746087,5.29499318,58439.0,58438.0,0.0028998]
[1725192750261,5.26699318,58439.0,58438.0,0.0028998]
[1725192750470,4.35700318,58439.0,58438.0,0.0028998]
[1725192756708,4.00700318,58439.0,58438.0,0.0028998]
[1725192757622,3.66476618,58439.0,58438.0,0.0028998]
[1725192761298,1.23485018,58439.0,58438.0,0.0028998]
[1725192761525,4.50535618,58439.0,58438.0,0.0028998]
[1725192763608,4.583153,58439.0,58438.0,0.0028998]
[1725192771785,4.70199965,58439.0,58438.0,0.0028998]
[1725192771996,5.04423665,58439.0,58438.0,0.0028998]
[1725192772201,4.70199965,58439.0,58438.0,0.0028998]
[1725192773180,4.99509,58439.0,58438.0,0.0028998]
[1725192773832,1.724584,58439.0,58438.0,0.0028998]
[1725192774058,4.99509,58439.0,58438.0,0.0028998]
[1725192774269,5.35009,58439.0,58438.0,0.0028998]
[1725192774482,5.37309,58439.0,58438.0,0.0028998]
[1725192774927,5.76876105,58439.0,58438.0,0.0028998]
[1725192775149,6.00090352,58439.0,58438.0,0.0028998]
[1725192775397,6.00090352,58439.0,58438.0,8e-07]
[1725192775621,2.73039752,58439.0,58438.0,8e-07]
[1725192775837,3.07263452,58439.0,58438.0,8e-07]
[1725192776066,3.02719205,58439.0,58438.0,8e-07]
[1725192777786,3.01919205,58439.0,58438.0,8e-07]
[1725192778414,3.03719205,58439.0,58438.0,0.0020008]
[1725192778857,6.29969805,58439.0,58438.0,0.0010008]
[1725192779070,6.32669805,58439.0,58438.0,0.0030008]
[1725192781675,6.36614052,58439.0,58438.0,8e-07]
[1725192781918,6.36614052,58439.0,58435.0,5e-07]
[1725192781919,2.130097,58436.0,58435.0,5e-07]
[1725192782130,2.222797,58436.0,58435.0,5e-07]
[1725192782390,2.322797,58436.0,58435.0,5e-07]
[1725192782610,2.68297172,58436.0,58435.0,5e-07]
[1725192782835,2.70984148,58436.0,58435.0,5e-07]
[1725192783057,2.70984148,58436.0,58429.0,0.0008987]
[1725192783058,0.418844,58430.0,58429.0,6e-07]
[1725192783277,1.215833,58430.0,58429.0,6e-07]
[1725192783499,2.000411,58430.0,58429.0,6e-07]
[1725192783714,2.707989,58430.0,58429.0,6e-07]
[1725192784138,3.07715036,58430.0,58429.0,6e-07]
[1725192784374,3.245702,58430.0,58429.0,6e-07]
[1725192785055,2.81148503,58430.0,58429.0,6e-07]
[1725192785271,2.64989603,58430.0,58429.0,6e-07]
[1725192785496,2.66189603,58430.0,58429.0,0.0010006]
[1725192785705,2.67589603,58430.0,58429.0,0.0010006]
[1725192786136,0.171191,58414.0,58412.0,0.0879]
[1725192786367,0.855957,58414.0,58412.0,0.0879]
[1725192786579,4.149463,58414.0,58412.0,0.0879]
[1725192786794,5.44516364,58414.0,58412.0,0.0879]
[1725192787000,5.47203744,58414.0,58412.0,0.0879]
[1725192787217,5.3034858,58414.0,58412.0,0.0879]
[1725192787431,5.3044858,58414.0,58409.0,0.1527]
[1725192788121,5.3044858,58414.0,58409.0,0.0879]
[1725192797739,5.3044858,58414.0,58413.0,0.0702987]
[1725192797978,5.32240652,58414.0,58413.0,0.0702987]
[1725192798234,5.06915401,58414.0,58413.0,0.0702987]
[1725192798478,5.24034501,58414.0,58413.0,0.0702987]
[1725192798709,5.24034501,58414.0,58413.0,0.0008987]
[1725192802450,5.40889665,58414.0,58413.0,0.0008987]
[1725192802626,5.24034501,58414.0,58413.0,0.0008987]
[1725192806674,1.96983901,58414.0,58413.0,0.0008987]
[1725192806883,5.24034501,58414.0,58413.0,0.0008987]
[1725192811351,4.89796201,58414.0,58413.0,0.1532987]
[1725192811829,4.87108821,58414.0,58413.0,0.1532987]
[1725192812036,4.89796221,58414.0,58413.0,0.1532987]
[1725192814971,4.87496221,58414.0,58413.0,0.1532987]
[1725192815641,4.87578021,58414.0,58413.0,0.1532987]
[1725192820719,4.87578021,58414.0,58413.0,0.0830987]
[1725192821532,5.24116321,58414.0,58413.0,0.0830987]
[1725192825497,5.24116321,58414.0,58413.0,0.0008987]
[1725192834193,5.24116321,58414.0,58413.0,0.1550987]
[1725192834406,4.89878021,58414.0,58413.0,0.1550987]
[1725192834621,4.87190621,58414.0,58413.0,0.1550987]
[1725192835091,1.94378321,58414.0,58413.0,0.1550987]
[1725192835508,5.21428921,58414.0,58413.0,0.1550987]
[1725192835719,4.87190621,58414.0,58413.0,0.1550987]
[1725192837984,4.89878065,58414.0,58413.0,0.1550987]
[1725192841397,4.87190621,58414.0,58413.0,0.1550987]
[1725192844701,4.8987807,58414.0,58413.0,0.1550987]
[1725192846438,5.2411637,58414.0,58413.0,0.1550987]
[1725192846639,4.8987807,58414.0,58413.0,0.1550987]
[1725192847066,4.8757807,58414.0,58413.0,0.1550987]
[1725192847283,4.8757807,58414.0,58413.0,0.1600987]
[1725192847284,1.9741747,58414.0,58413.0,0.1600987]
[1725192847514,1.2872957,58414.0,58413.0,0.1600987]
[1725192847707,1.1647917,58414.0,58413.0,0.1620987]
[1725192847832,0.7037177,58414.0,58413.0,0.1620987]
[1725192848451,0.7027177,58414.0,58413.0,0.1620987]
[1725192848684,0.7037177,58414.0,58413.0,0.1720987]
[1725192849103,1.0461007,58414.0,58413.0,0.1720987]
[1725192849308,1.0451007,58414.0,58413.0,0.1720987]
[1725192849646,1.0461007,58414.0,58413.0,0.1720987]
[1725192850418,1.1471007,58414.0,58413.0,0.1720987]
[1725192851236,1.12022621,58414.0,58413.0,0.1720987]
[1725192851471,0.89463421,58414.0,58413.0,0.1720987]
[1725192851679,1.33292821,58414.0,58413.0,0.1720987]
[1725192851903,1.32188421,58414.0,58413.0,0.1720987]
[1725192852131,0.82900821,58414.0,58413.0,0.1700987]
[1725192852542,0.82900821,58414.0,58413.0,0.1720987]
[1725192852758,0.82900821,58414.0,58413.0,0.1700987]
[1725192852953,1.17139121,58414.0,58413.0,0.1720987]
[1725192853607,0.343117,58429.0,58423.0,0.01]
[1725192853826,0.513487,58424.0,58423.0,0.01]
[1725192854025,0.886175,58424.0,58423.0,0.012]
[1725192854236,0.886175,58424.0,58423.0,0.1692]
[1725192854587,0.886175,58424.0,58423.0,0.1682]
[1725192854997,0.750934,58424.0,58423.0,0.1732]
[1725192855220,0.308609,58424.0,58423.0,0.1732]
[1725192855662,0.308609,58424.0,58423.0,0.1722]
[1725192856545,0.750934,58424.0,58423.0,0.1722]
[1725192856741,0.751934,58424.0,58423.0,0.1842]
[1725192856954,0.751934,58424.0,58423.0,0.1862]
[1725192856955,0.752934,58424.0,58423.0,0.1862]
[1725192858540,0.77979827,58424.0,58423.0,0.1862]
[1725192860618,0.77809827,58424.0,58423.0,0.1862]
[1725192861934,0.77809827,58424.0,58423.0,0.1870998]
[1725192862350,0.77891627,58424.0,58423.0,0.1870998]
[1725192863542,0.752052,58424.0,58423.0,0.1870998]
[1725192863750,1.236633,58424.0,58423.0,0.1870998]
[1725192865695,0.956429,58424.0,58423.0,0.1870998]
[1725192865920,0.878913,58424.0,58423.0,0.1870998]
[1725192866644,0.266166,58424.0,58423.0,0.1870998]
[1725192866878,0.2209,58424.0,58423.0,0.1870998]
[1725192867108,0.102818,58424.0,58423.0,0.3582648]
[1725192867352,0.103405,58424.0,58423.0,0.1870998]
[1725192867593,0.203405,58424.0,58423.0,0.1870998]
[1725192869386,0.374567,58424.0,58423.0,0.1870998]
[1725192869814,0.4014309,58424.0,58423.0,0.1870998]
[1725192873650,0.513479,58425.0,58424.0,0.01]
[1725192873884,0.513479,58425.0,58424.0,0.015]
[1725192874375,0.953168,58425.0,58424.0,0.015]
[1725192875111,0.954168,58425.0,58424.0,0.018]
[1725192875365,1.296488,58425.0,58424.0,0.018]
[1725192875614,1.396488,58425.0,58424.0,0.018]
[1725192875848,1.397306,58425.0,58424.0,0.018]
[1725192876308,1.398306,58425.0,58424.0,0.029]
[1725192877264,1.300937,58425.0,58424.0,0.029]
[1725192877533,2.082768,58425.0,58424.0,0.029]
[1725192879965,2.10963303,58425.0,58424.0,0.029]
[1725192880442,2.10963303,58425.0,58424.0,0.014]
[1725192880443,2.45195303,58425.0,58424.0,0.014]
[1725192880685,2.52205303,58425.0,58424.0,0.014]
[1725192881634,2.52105303,58425.0,58424.0,0.011]
[1725192882114,2.52205303,58425.0,58424.0,0.015]
[1725192882305,1.198137,58424.0,58423.0,0.0010938]
[1725192882519,3.51995,58424.0,58423.0,0.0010938]
[1725192884588,3.52095,58424.0,58423.0,0.0050938]
[1725192885589,3.52195,58424.0,58423.0,0.0120938]
[1725192888177,3.522768,58424.0,58423.0,0.0120938]
[1725192890234,3.54963517,58424.0,58423.0,0.0120938]
[1725192892293,3.54963517,58424.0,58423.0,0.0170938]
[1725192893736,3.522768,58424.0,58423.0,0.0170938]
[1725192895004,3.522768,58424.0,58423.0,0.0190938]
[1725192896994,3.54963448,58424.0,58423.0,0.0190938]
[1725192899948,3.47550672,58424.0,58423.0,0.0190938]
[1725192900736,3.54780672,58424.0,58423.0,0.0170938]
[1725192901350,3.54780672,58424.0,58423.0,0.0120938]
[1725192903454,4.05868336,58424.0,58423.0,0.0120938]
[1725192903670,4.14368336,58424.0,58423.0,0.0120938]
[1725192903879,4.50900836,58424.0,58423.0,0.0120938]
[1725192905103,4.34045672,58424.0,58423.0,0.0120938]
[1725192905524,4.34045672,58424.0,58408.0,0.005]
[1725192905525,1.540723,58414.0,58403.0,0.0866]
[1725192905737,4.70826,58414.0,58407.0,0.50540786]
[1725192905944,4.80826,58414.0,58403.0,0.005]
[1725192906363,4.80826,58414.0,58406.0,0.005]
[1725192906364,4.85305426,58414.0,58406.0,0.005]
[1725192907610,4.85305426,58414.0,58390.0,0.50540786]
[1725192907611,4.76805426,58414.0,58410.0,0.005]
[1725192908264,3.87783026,58414.0,58410.0,0.005]
[1725192908473,3.85295672,58414.0,58410.0,0.005]
[1725192908683,3.85295672,58414.0,58412.0,0.002]
[1725192908893,3.85295672,58414.0,58410.0,0.005]
[1725192908894,3.85295672,58414.0,58411.0,0.002]
[1725192909104,4.54297772,58414.0,58411.0,0.002]
[1725192909316,4.27467772,58414.0,58411.0,0.002]
[1725192909529,3.93229472,58414.0,58411.0,0.002]
[1725192909745,3.30868072,58414.0,58413.0,0.0718987]
[1725192909969,3.30868072,58414.0,58413.0,0.1604987]
[1725192910176,2.67952044,58414.0,58413.0,0.1734987]
[1725192911957,1.011891,58414.0,58413.0,0.1734987]
[1725192912439,1.011891,58414.0,58413.0,0.0058987]
[1725192912933,1.354274,58414.0,58413.0,0.0058987]
[1725192913159,1.454274,58414.0,58413.0,0.0058987]
[1725192916512,1.454274,58414.0,58413.0,0.1637987]
[1725192916513,1.111891,58414.0,58413.0,0.1637987]
[1725192917435,0.769508,58414.0,58413.0,0.1717987]
[1725192918538,0.79637703,58414.0,58413.0,0.1717987]
[1725192919291,0.79637703,58414.0,58413.0,0.1737987]
[1725192921933,0.90178303,58414.0,58413.0,0.1737987]
[1725192922600,0.82835603,58414.0,58413.0,0.1737987]
[1725192923673,0.801487,58414.0,58413.0,0.1737987]
[1725192926973,0.82835573,58414.0,58413.0,0.1737987]
[1725192927381,0.64044273,58414.0,58413.0,0.1737987]
[1725192927592,0.29805973,58414.0,58413.0,0.1737987]
[1725192928482,0.54225173,58414.0,58413.0,0.1737987]
[1725192928694,0.54225173,58414.0,58413.0,0.0078987]
[1725192928695,1.56940073,58414.0,58413.0,0.0078987]